bitfinex-derivatives/quotes_SOLF0:USTF0_20240906
["timestamp","ask_amount","ask_price","bid_price","bid_amount"]
[1725623047390,0.05549301,130.03,130.0,11.82]
[1725623047991,0.05549301,130.03,130.0,11.87875597]
[1725623048499,3.90159301,130.03,130.0,11.87875597]
[1725623050894,0.05549301,130.03,130.0,11.87875597]
[1725623052203,3.90129301,130.03,130.0,11.87875597]
[1725623055404,0.05549301,130.03,130.01,11.82]
[1725623055605,0.05549301,130.03,130.02,11.82]
[1725623057799,0.05549301,130.03,130.01,15.6662]
[1725623058602,0.05549301,130.03,130.01,11.82]
[1725623060502,0.05549301,130.03,130.0,15.72515597]
[1725623060694,0.05549301,130.03,130.0,0.05875597]
[1725623060895,0.05549301,130.03,130.0,11.87875597]
[1725623063405,3.8463,130.02,130.0,11.87875597]
[1725623064203,3.8463,130.02,130.0,0.05875597]
[1725623065715,3.8464,130.01,130.0,0.05875597]
[1725623066417,3.8464,130.01,130.0,8.49363239]
[1725623066731,3.8464,130.01,130.0,16.45325891]
[1725623068209,3.8464,130.01,130.0,0.05875597]
[1725623080521,3.8462,130.02,130.0,0.05875597]
[1725623082721,3.90139301,130.03,130.0,3.90545597]
[1725623082921,3.90139301,130.03,130.0,15.72545597]
[1725623087322,0.05549301,130.03,130.01,3.8463]
[1725623091725,0.05549301,130.03,130.01,15.6663]
[1725623094828,0.05549301,130.03,130.01,3.8463]
[1725623096629,0.05549301,130.03,130.0,15.72525597]
[1725623097331,0.05549301,130.03,130.0,3.90525597]
[1725623099539,3.90129301,130.03,130.0,3.90525597]
[1725623101637,0.05549301,130.03,130.0,3.90525597]
[1725623102437,0.05549301,130.03,130.01,3.8464]
[1725623103143,0.05549301,130.03,130.0,3.90535597]
[1725623103433,11.87549301,130.03,130.0,0.05875597]
[1725623103934,0.05549301,130.03,130.0,0.05875597]
[1725623104132,0.05549301,130.03,130.0,11.87875597]
[1725623107634,0.05549301,130.03,130.0,15.72515597]
[1725623108540,3.90139301,130.03,130.0,15.72515597]
[1725623108746,0.05549301,130.03,130.0,0.05875597]
[1725623108935,11.87549301,130.03,130.0,0.05875597]
[1725623109139,3.8477,129.97,129.93,3.8487]
[1725623109338,11.82,129.98,129.92,14.549]
[1725623109536,11.82,129.98,129.93,16.22238184]
[1725623109833,11.82,130.0,129.94,3.8483]
[1725623110235,3.89894774,129.98,129.94,3.8483]
[1725623111134,3.89894774,129.98,129.95,0.05742142]
[1725623113343,3.89894774,129.98,129.95,11.87742142]
[1725623113544,0.05164774,129.98,129.97,11.82]
[1725623113839,11.82,130.04,129.97,11.82]
[1725623114142,3.8462,130.02,129.99,11.82]
[1725623114932,3.90448732,130.02,129.99,11.82]
[1725623115334,3.90448732,130.02,129.99,15.667]
[1725623115742,3.8464,130.01,129.99,15.667]
[1725623115936,3.8464,130.01,129.98,3.8472]
[1725623116242,11.82,130.01,129.97,1.3787]
[1725623116441,3.8469,130.0,129.97,3.8474]
[1725623117031,3.8469,130.0,129.97,3.90374449]
[1725623117439,3.847,129.99,129.97,3.90374449]
[1725623117746,3.90426292,129.99,129.97,0.05634449]
[1725623119041,3.8473,129.98,129.97,0.05634449]
[1725623121144,3.90426292,129.99,129.97,0.05634449]
[1725623124745,3.8473,129.98,129.97,0.05634449]
[1725623124945,15.6673,129.98,129.97,0.05634449]
[1725623126042,3.8489,129.93,129.89,378.61285904]
[1725623126240,11.82,129.94,129.89,366.79285904]
[1725623126449,3.8493,129.92,129.89,366.79285904]
[1725623126846,11.82,129.93,129.89,366.79285904]
[1725623127047,3.8489,129.93,129.89,378.61285904]
[1725623127344,0.05661931,129.92,129.9,11.82]
[1725623127535,0.05661931,129.92,129.9,11.87715276]
[1725623127739,11.82,129.96,129.9,11.87715276]
[1725623127933,0.04922907,129.92,129.9,11.87715276]
[1725623129042,0.04922907,129.92,129.9,15.72675276]
[1725623129551,0.04922907,129.92,129.9,17.10575276]
[1725623129840,0.04922907,129.92,129.91,3.8493]
[1725623130846,0.04922907,129.92,129.9,17.10575276]
[1725623131348,0.04922907,129.92,129.9,1.43615276]
[1725623131547,0.04922907,129.92,129.9,0.05715276]
[1725623136560,3.89842907,129.92,129.9,0.05715276]
[1725623139863,3.8493,129.91,129.9,0.05715276]
[1725623140854,11.82,129.91,129.89,362.49305904]
[1725623141058,15.6696,129.9,129.89,358.41835904]
[1725623141264,3.8496,129.9,129.89,358.41835904]
[1725623147172,3.8495,129.91,129.89,358.41835904]
[1725623147672,3.8496,129.91,129.89,358.41835904]
[1725623149583,3.8496,129.9,129.89,358.41835904]
[1725623149974,11.86922907,129.92,129.89,358.41835904]
[1725623150469,3.8495,129.91,129.89,358.41835904]
[1725623151477,3.8496,129.9,129.89,358.41835904]
[1725623155074,3.8495,129.91,129.89,358.41835904]
[1725623157775,3.8496,129.9,129.89,358.41835904]
[1725623161680,15.6696,129.9,129.89,358.41835904]
[1725623162185,15.6696,129.9,129.89,250.47755904]
[1725623162380,3.8496,129.9,129.89,250.47755904]
[1725623163287,0.04922907,129.92,129.89,250.47755904]
[1725623163586,0.04922907,129.92,129.89,262.29755904]
[1725623164177,107.71987317,129.97,129.91,11.82]
[1725623164381,15.76282966,129.98,129.93,11.82]
[1725623164580,3.94282966,129.98,129.94,11.82]
[1725623164781,11.82,129.99,129.94,11.82]
[1725623164971,3.8476,129.97,129.93,13.1179]
[1725623165487,0.05094831,129.96,129.93,13.1179]
[1725623166782,3.76624563,130.05,129.95,15.6679]
[1725623166986,11.82,130.03,129.97,11.82]
[1725623167189,3.8467,130.01,129.97,11.82]
[1725623167384,15.57777658,130.0,129.93,1.2979]
[1725623167592,15.57777658,130.0,129.94,11.82]
[1725623168088,0.05159516,129.98,129.94,15.6684]
[1725623169381,0.05159516,129.98,129.95,0.04869446]
[1725623169578,0.05159516,129.98,129.96,11.82]
[1725623174182,0.05159516,129.98,129.96,15.6677]
[1725623174689,0.05159516,129.98,129.97,11.82]
[1725623175392,0.05159516,129.98,129.96,15.6677]
[1725623175585,0.05159516,129.98,129.96,11.82]
[1725623179693,0.05159516,129.98,129.96,15.6678]
[1725623180394,0.05159516,129.98,129.97,11.82]
[1725623181688,11.82,130.05,129.97,11.82]
[1725623181882,11.82,130.05,130.0,11.82]
[1725623182893,0.05797677,130.04,130.01,0.05194]
[1725623183881,3.8461,130.02,130.01,0.05194]
[1725623186090,15.6661,130.02,130.01,0.05194]
[1725623192795,3.8461,130.02,130.01,0.05194]
[1725623199597,15.6661,130.02,130.01,0.05194]
[1725623199795,3.8475,129.98,129.94,14.642]
[1725623200603,3.8475,129.98,129.95,3.848]
[1725623201009,0.05057121,129.98,129.95,11.82]
[1725623201303,0.05057121,129.98,129.95,15.668]
[1725623202710,0.05057121,129.98,129.95,15.71999272]
[1725623207221,3.8468,130.0,129.97,11.82]
[1725623208428,3.89695813,130.0,129.97,11.82]
[1725623209224,3.8471,129.99,129.97,11.82]
[1725623212329,11.87015813,130.0,129.95,11.87199272]
[1725623212930,3.8472,129.99,129.95,15.71999272]
[1725623214126,3.8472,129.99,129.95,11.87199272]
[1725623214326,3.89695813,130.0,129.97,11.82]
[1725623217335,11.82,129.98,129.95,0.05199272]
[1725623217521,3.8479,129.96,129.95,0.05199272]
[1725623217723,15.6679,129.96,129.95,0.05199272]
[1725623218024,3.8479,129.96,129.95,0.05199272]
[1725623218225,11.82,129.97,129.95,0.05199272]
[1725623218530,0.05516059,129.97,129.95,0.05199272]
[1725623219529,0.05516059,129.97,129.95,11.87199272]
[1725623219931,0.05516059,129.97,129.95,0.05199272]
[1725623220635,0.05516059,129.97,129.95,3.90019272]
[1725623221028,0.05516059,129.97,129.95,0.05199272]
[1725623222330,3.90296059,129.97,129.95,0.05199272]
[1725623222625,0.05516059,129.97,129.95,0.05199272]
[1725623222826,3.78338191,130.0,129.95,0.05199272]
[1725623222827,3.78338191,130.0,129.95,29.62199272]
[1725623223026,29.57,130.03,129.96,1.3856]
[1725623223334,3.8469,130.0,129.96,2.7098]
[1725623223523,3.76683034,130.0,129.96,2.7098]
[1725623223728,29.57,130.03,129.96,2.7098]
[1725623223729,3.8471,129.99,129.96,2.7098]
[1725623224028,3.8471,129.99,129.96,2.76483166]
[1725623224230,3.847,129.99,129.96,2.76483166]
[1725623224530,3.86036598,130.0,129.96,1.44063166]
[1725623224730,29.57,130.01,129.96,0.05503166]
[1725623224929,3.8475,129.98,129.96,0.05503166]
[1725623225234,3.9403478,129.99,129.96,0.05503166]
[1725623225427,29.57,129.99,129.96,0.05503166]
[1725623225630,3.9318789,129.98,129.96,0.05503166]
[1725623225834,29.57,129.99,129.96,0.05503166]
[1725623226238,3.8476,129.97,129.96,0.05503166]
[1725623227338,29.57,129.98,129.9,6.566]
[1725623227339,3.8489,129.93,129.9,2.7166]
[1725623228435,3.8489,129.93,129.9,6.5662]
[1725623229444,3.8489,129.93,129.9,2.7166]
[1725623231132,29.57,129.96,129.9,2.7166]
[1725623231634,3.8489,129.93,129.9,2.7166]
[1725623233331,3.8489,129.93,129.9,6.5662]
[1725623235241,3.90314992,129.93,129.9,2.7166]
[1725623235436,3.8491,129.92,129.9,2.7166]
[1725623235632,3.8491,129.92,129.9,2.76760553]
[1725623237145,3.8491,129.92,129.9,1.45700553]
[1725623238941,0.05424992,129.93,129.9,0.05100553]
[1725623238942,3.8493,129.91,129.9,0.05100553]
[1725623242042,7.79677,129.92,129.9,0.05100553]
[1725623242846,3.8492,129.92,129.9,0.05100553]
[1725623243045,0.05424992,129.93,129.91,11.84]
[1725623243249,0.05424992,129.93,129.92,11.84]
[1725623243542,0.05424992,129.93,129.92,13.1964]
[1725623246047,3.77905377,129.99,129.92,17.0454]
[1725623246349,11.84,129.99,129.92,17.0454]
[1725623246542,15.66352402,129.99,129.92,17.0454]
[1725623247143,3.8481,129.96,129.92,17.0454]
[1725623247345,15.66352402,129.99,129.94,0.05720914]
[1725623248245,3.8482,129.95,129.94,0.05720914]
[1725623248844,3.848,129.96,129.94,0.05720914]
[1725623249242,3.82352402,129.99,129.95,11.84]
[1725623249442,3.8471,129.99,129.96,11.84]
[1725623249849,0.05784915,129.99,129.98,11.84]
[1725623250645,0.05784915,129.99,129.98,15.6873]
[1725623250847,0.05784915,129.99,129.97,0.05153705]
[1725623251047,0.05784915,129.99,129.97,11.89153705]
[1725623251951,0.05784915,129.99,129.97,0.05153705]
[1725623252143,0.05784915,129.99,129.97,3.89893705]
[1725623257153,0.05784915,129.99,129.97,0.05153705]
[1725623257861,0.05784915,129.99,129.97,3.89903705]
[1725623259965,0.05784915,129.99,129.97,33.45903705]
[1725623261555,0.05784915,129.99,129.97,29.61153705]
[1725623261763,15.3722,130.13,129.98,29.56]
[1725623262060,33.43636215,130.08,130.0,29.56]
[1725623262249,3.8455,130.04,130.01,3.8462]
[1725623262656,33.43636215,130.08,129.97,131.63276717]
[1725623262657,29.56,130.06,129.97,131.63276717]
[1725623262850,29.56,130.05,130.01,0.05704784]
[1725623263055,29.56,130.03,130.01,0.05704784]
[1725623263353,3.8461,130.02,130.01,0.05704784]
[1725623266363,3.87636215,130.08,130.01,0.05704784]
[1725623266364,29.56,130.06,130.01,0.05704784]
[1725623266671,29.56,130.08,130.01,0.05704784]
[1725623266868,0.28283604,130.07,130.01,3.90324784]
[1725623267159,3.8457,130.04,130.01,3.90324784]
[1725623267353,1.0,130.07,130.01,3.90324784]
[1725623268362,3.8457,130.04,130.01,3.90324784]
[1725623275565,3.89467349,130.05,130.02,3.846]
[1725623275761,3.89467349,130.05,130.02,11.82]
[1725623276272,3.89467349,130.05,130.02,15.666]
[1725623277267,3.8456,130.04,130.01,15.72324784]
[1725623280971,3.89487349,130.05,130.01,15.72324784]
[1725623281273,0.04947349,130.05,130.01,0.05704784]
[1725623281474,3.8461,130.02,130.01,0.05704784]
[1725623282164,3.846,130.03,130.01,0.05704784]
[1725623282365,0.04947349,130.05,130.01,11.87704784]
[1725623282875,3.8458,130.04,130.01,11.87704784]
[1725623283576,3.8458,130.03,130.01,0.05704784]
[1725623286568,3.8456,130.04,130.01,11.87704784]
[1725623289577,3.8456,130.04,130.01,15.72334784]
[1725623290172,3.8456,130.04,130.02,11.82]
[1725623291378,3.8456,130.04,130.01,11.87704784]
[1725623291583,3.8456,130.04,130.01,0.05704784]
[1725623293879,11.86947349,130.05,130.01,0.05704784]
[1725623293880,3.8458,130.03,130.01,0.05704784]
[1725623300488,0.04947349,130.05,130.01,0.05704784]
[1725623300489,3.8457,130.04,130.01,15.72344784]
[1725623300689,3.8457,130.04,130.02,11.82]
[1725623301191,3.8457,130.04,130.01,15.72344784]
[1725623303892,3.8457,130.04,130.01,3.90344784]
[1725623304097,3.8457,130.04,130.01,15.72344784]
[1725623304499,3.8457,130.04,130.01,3.90344784]
[1725623304708,3.8457,130.04,130.01,15.72344784]
[1725623306598,3.8457,130.04,130.02,11.82]
[1725623307499,3.89477349,130.05,130.02,15.666]
[1725623307704,3.89477349,130.05,130.03,11.82]
[1725623309302,3.8455,130.04,130.02,2.7076]
[1725623309502,3.8455,130.04,130.02,14.5276]
[1725623309705,0.04947349,130.05,130.02,14.5276]
[1725623310208,3.89477349,130.05,130.02,14.5276]
[1725623310509,3.89477349,130.05,130.02,18.3736]
[1725623311618,3.89477349,130.05,130.03,11.82]
[1725623311804,0.04947349,130.05,130.03,15.6657]
[1725623312497,0.04947349,130.05,130.04,11.82]
[1725623312698,0.04947349,130.05,130.04,15.6655]
[1725623314711,3.90827014,130.08,130.05,3.8452]
[1725623314712,3.8445,130.08,130.05,3.8452]
[1725623314911,3.8445,130.08,130.06,11.82]
[1725623315711,7.74297175,130.09,130.06,11.82]
[1725623315915,7.74297175,130.09,130.06,11.87807685]
[1725623316213,3.8443,130.08,130.06,11.87807685]
[1725623316808,7.74287175,130.09,130.06,11.87807685]
[1725623317209,310.45325983,130.15,130.07,11.82]
[1725623317402,0.05436471,130.09,130.06,3.83950842]
[1725623317610,3.8433,130.12,130.08,11.82]
[1725623317809,3.8433,130.12,130.08,15.6641]
[1725623317810,0.05612987,130.09,130.08,15.6641]
[1725623320710,3.8433,130.12,130.08,15.6641]
[1725623321112,7.6792,130.25,130.11,11.82]
[1725623321418,11.82,130.17,130.12,11.82]
[1725623321621,0.28267116,130.16,130.12,11.82]
[1725623321823,3.8426,130.14,130.12,11.82]
[1725623322013,3.8426,130.14,130.13,0.0592064]
[1725623323019,11.82,130.19,130.13,11.8792064]
[1725623323212,0.2826368,130.18,130.15,11.82]
[1725623323412,3.8787236,130.21,130.16,15.6618]
[1725623323723,0.2826042,130.2,130.16,15.6618]
[1725623323923,4.18209431,130.19,130.16,15.6618]
[1725623324226,3.95278809,130.19,130.16,15.71949353]
[1725623324526,0.05329798,130.19,130.16,15.71949353]
[1725623325609,0.05329798,130.19,130.17,3.8416]
[1725623326119,3.89439798,130.19,130.16,3.89959353]
[1725623326414,3.89439798,130.19,130.16,0.05769353]
[1725623326817,3.89439798,130.19,130.16,11.87769353]
[1725623328109,0.05329798,130.19,130.18,11.82]
[1725623329516,0.05329798,130.19,130.18,15.6614]
[1725623330023,0.05329798,130.19,130.18,3.8414]
[1725623332223,3.8404,130.22,130.18,3.8414]
[1725623333514,3.8404,130.22,130.19,0.05893737]
[1725623334417,3.8406,130.21,130.19,0.05893737]
[1725623334615,0.05456989,130.22,130.19,29.56893737]
[1725623335209,3.89496989,130.22,130.19,29.56893737]
[1725623336229,3.89496989,130.22,130.19,0.05893737]
[1725623336230,0.05456989,130.22,130.19,0.05893737]
[1725623336721,3.89496989,130.22,130.19,29.56893737]
[1725623336921,0.05456989,130.22,130.19,29.56893737]
[1725623337315,3.89476989,130.22,130.19,29.56893737]
[1725623339117,3.89476989,130.22,130.19,33.41003737]
[1725623340228,0.05456989,130.22,130.19,33.41003737]
[1725623343622,0.05456989,130.22,130.2,3.8408]
[1725623344427,0.05456989,130.22,130.21,29.51]
[1725623349722,228.0,130.33,130.21,29.51]
[1725623349927,11.79,130.32,130.27,11.79]
[1725623350224,0.28239273,130.31,130.27,11.79]
[1725623350727,3.83199992,130.42,130.29,11.79]
[1725623350921,11.79,130.37,130.31,11.79]
[1725623351120,11.79,130.35,130.3,11.79]
[1725623351321,0.28230117,130.34,130.3,11.79]
[1725623351520,12.07230117,130.34,130.28,11.79]
[1725623351825,3.8372,130.32,130.31,0.05181391]
[1725623352141,4.11950117,130.32,130.31,0.05181391]
[1725623353324,3.8372,130.32,130.31,11.84181391]
[1725623354931,3.8371,130.33,130.31,11.84181391]
[1725623355125,3.85864749,130.35,130.32,11.79]
[1725623356021,3.85864749,130.35,130.32,29.49]
[1725623356230,1.0,130.36,130.32,29.49]
[1725623356426,1.0,130.36,130.33,29.49]
[1725623356630,1.0,130.36,130.33,33.3268]
[1725623357228,4.8361,130.36,130.33,33.3268]
[1725623357827,1.0,130.36,130.34,3.8366]
[1725623358029,1.0,130.36,130.33,29.49]
[1725623358338,1.05787567,130.36,130.35,29.49]
[1725623359128,0.05787567,130.36,130.35,29.49]
[1725623359529,0.05787567,130.36,130.35,33.3264]
[1725623359732,0.05787567,130.36,130.35,29.49]
[1725623362527,3.8356,130.38,130.35,29.49]
[1725623362725,3.8353,130.39,130.37,29.49]
[1725623363139,3.835,130.4,130.37,29.49]
[1725623363827,3.835,130.4,130.37,29.54034898]
[1725623364429,3.8352,130.39,130.37,29.54034898]
[1725623364630,3.91167326,130.42,130.37,0.05034898]
[1725623364826,29.49,130.43,130.37,0.05034898]
[1725623365031,3.8354,130.39,130.37,0.05034898]
[1725623366534,3.8355,130.38,130.37,0.05034898]
[1725623371033,3.8367,130.34,130.32,2.8391]
[1725623371247,3.85102717,130.4,130.33,29.49]
[1725623371546,29.49,130.41,130.33,29.49]
[1725623371842,29.49,130.41,130.33,33.3267]
[1725623372044,33.3633762,130.41,130.33,33.3267]
[1725623372249,3.8361,130.37,130.36,0.05535555]
[1725623375449,3.8356,130.38,130.35,29.28834241]
[1725623375649,3.8356,130.38,130.36,29.49]
[1725623375947,3.8356,130.38,130.37,11.79]
[1725623376447,0.2693,130.44,130.37,15.6257]
[1725623376448,3.86877052,130.42,130.37,15.6257]
[1725623376747,11.79,130.45,130.4,11.79]
[1725623376945,0.28210011,130.44,130.4,11.79]
[1725623377346,3.8348,130.41,130.4,11.79]
[1725623377749,3.919433,130.45,130.39,0.05119086]
[1725623377954,3.8349,130.4,130.39,0.05119086]
[1725623379360,3.8349,130.4,130.39,11.84119086]
[1725623382252,3.8349,130.4,130.39,0.05119086]
[1725623382955,15.90701671,130.4,130.39,0.05119086]
[1725623383453,4.11701671,130.4,130.39,0.05119086]
[1725623385154,4.11700831,130.4,130.39,0.05119086]
[1725623385553,3.8349,130.4,130.39,0.05119086]
[1725623385756,4.11700831,130.4,130.39,0.05119086]
[1725623388563,3.8349,130.4,130.39,0.05119086]
[1725623388966,3.8349,130.4,130.39,11.84119086]
[1725623389464,0.05404644,130.41,130.39,15.67619086]
[1725623389669,0.05404644,130.41,130.4,11.79]
[1725623390958,0.05404644,130.41,130.39,0.05119086]
[1725623390959,3.88864644,130.41,130.39,0.05119086]
[1725623391157,3.88864644,130.41,130.39,11.84119086]
[1725623391763,3.88864644,130.41,130.4,11.79]
[1725623392961,3.8349,130.4,130.39,0.05119086]
[1725623394673,0.05404644,130.41,130.39,0.05119086]
[1725623396167,3.8349,130.4,130.39,0.05119086]
[1725623403168,0.05404644,130.41,130.39,0.05119086]
[1725623404065,3.88884644,130.41,130.39,0.05119086]
[1725623404570,0.05404644,130.41,130.4,3.8349]
[1725623404870,0.28208151,130.43,130.39,29.52119086]
[1725623405170,3.77520828,130.47,130.42,29.47]
[1725623405370,0.4664,130.49,130.42,29.47]
[1725623405568,3.8336,130.45,130.42,33.3043]
[1725623406283,3.8329,130.47,130.42,29.52140967]
[1725623406571,3.77559194,130.49,130.43,1.3622]
[1725623406775,0.2820019,130.48,130.43,5.196]
[1725623406971,0.2820019,130.47,130.43,5.196]
[1725623407171,0.2820019,130.47,130.43,1.3622]
[1725623407377,0.28199979,130.46,130.44,0.05778658]
[1725623407676,0.28199979,130.46,130.38,29.47]
[1725623407879,0.28199979,130.46,130.4,3.8348]
[1725623408069,0.28199979,130.46,130.41,0.0516542]
[1725623408469,3.8342,130.43,130.41,0.0516542]
[1725623408679,3.77060437,130.47,130.41,0.0516542]
[1725623408982,3.8343,130.42,130.41,0.0516542]
[1725623409280,7.70090624,130.42,130.41,0.0516542]
[1725623409481,3.8343,130.42,130.41,0.0516542]
[1725623411175,4.11636362,130.42,130.41,0.0516542]
[1725623412177,33.58636362,130.42,130.41,0.0516542]
[1725623412478,33.58640572,130.42,130.41,0.0516542]
[1725623413477,33.58641899,130.42,130.41,0.0516542]
[1725623414082,4.11641899,130.42,130.41,0.0516542]
[1725623415374,3.8343,130.42,130.41,0.0516542]
[1725623415582,4.11637919,130.42,130.41,0.0516542]
[1725623417387,3.8343,130.42,130.41,0.0516542]
[1725623417588,4.11638672,130.42,130.41,0.0516542]
[1725623420079,15.90638672,130.42,130.41,0.0516542]
[1725623420686,4.11638672,130.42,130.41,0.0516542]
[1725623420881,15.90638672,130.42,130.41,0.0516542]
[1725623421483,15.90641904,130.42,130.41,0.0516542]
[1725623421879,3.8355,130.38,130.35,1.3186]
[1725623422081,3.81330299,130.43,130.34,2.775]
[1725623422286,11.79,130.37,130.34,2.775]
[1725623422783,3.8361,130.36,130.34,14.565]
[1725623423189,3.8361,130.36,130.34,14.6170295]
[1725623423885,3.836,130.37,130.34,6.6635295]
[1725623424291,1.0,130.41,130.35,29.48]
[1725623424594,3.8356,130.38,130.35,34.6091]
[1725623424888,3.8356,130.38,130.37,0.05157351]
[1725623433202,33.3156,130.38,130.37,0.05157351]
[1725623433400,3.8364,130.35,130.34,1.3604]
[1725623434896,3.8366,130.34,130.33,0.05138056]
[1725623439403,0.0589997,130.35,130.33,0.05138056]
[1725623439903,0.0589997,130.35,130.33,1.45948056]
[1725623440306,0.0589997,130.35,130.34,1.3632]
[1725623440905,0.0589997,130.35,130.34,5.1998]
[1725623447604,3.835,130.4,130.34,30.8432]
[1725623447808,3.835,130.4,130.37,3.8356]
[1725623448003,1.0,130.41,130.37,3.8356]
[1725623448204,1.0,130.41,130.35,29.48]
[1725623448205,3.85256251,130.4,130.35,29.48]
[1725623448504,1.0,130.41,130.35,29.48]
[1725623448705,3.8349,130.4,130.37,3.8355]
[1725623448913,1.0,130.41,130.37,29.48]
[1725623449111,1.0,130.41,130.37,29.53088607]
[1725623449412,3.85947156,130.44,130.39,29.48]
[1725623449616,74.90785397,130.46,130.39,29.48]
[1725623449819,3.8342,130.43,130.39,33.315]
[1725623450014,32.2853,130.49,130.41,0.0511106]
[1725623450209,0.05505166,130.44,130.41,0.0511106]
[1725623450416,3.88905166,130.44,130.41,3.8345]
[1725623450621,3.88905166,130.44,130.41,3.88419752]
[1725623450917,0.05505166,130.44,130.41,3.88419752]
[1725623451312,0.05505166,130.44,130.42,3.8343]
[1725623452019,0.05505166,130.44,130.41,33.36419752]
[1725623454511,0.05505166,130.44,130.41,29.52969752]
[1725623454714,0.05505166,130.44,130.41,30.83829752]
[1725623455018,0.05505166,130.44,130.43,3.834]
[1725623456019,0.05505166,130.44,130.43,33.314]
[1725623457321,3.8327,130.48,130.43,29.48]
[1725623458120,3.8327,130.48,130.44,3.8336]
[1725623458320,3.8327,130.48,130.43,29.48]
[1725623458523,3.8327,130.48,130.45,0.05550831]
[1725623458714,3.8327,130.48,130.45,29.53550831]
[1725623459122,3.8327,130.48,130.45,33.36880831]
[1725623459728,3.8327,130.48,130.45,29.53550831]
[1725623460325,3.8327,130.48,130.45,33.36890831]
[1725623460525,3.8324,130.49,130.45,33.36890831]
[1725623461024,29.48,130.5,130.45,0.05550831]
[1725623461235,0.28191984,130.49,130.43,29.48]
[1725623461422,3.7473072,130.48,130.46,0.05860908]
[1725623461725,29.48,130.5,130.46,0.05860908]
[1725623462030,0.28191808,130.49,130.46,0.05860908]
[1725623462226,29.48,130.52,130.46,0.05860908]
[1725623462422,3.8327,130.48,130.46,0.05860908]
[1725623463332,3.8323,130.49,130.46,3.89170908]
[1725623463630,1.3044,130.53,130.46,29.53860908]
[1725623463932,0.28186302,130.52,130.46,29.53860908]
[1725623464136,0.04563507,130.51,130.46,29.53860908]
[1725623464537,0.04563507,130.51,130.48,3.8324]
[1725623464538,3.87743507,130.51,130.48,3.8324]
[1725623464835,3.87743507,130.51,130.46,29.53860908]
[1725623464836,0.04563507,130.51,130.46,29.53860908]
[1725623465335,3.8321,130.5,130.48,29.48]
[1725623465830,3.87733507,130.51,130.48,33.3124]
[1725623466231,3.87733507,130.51,130.48,29.48]
[1725623467128,3.832,130.5,130.48,29.48]
[1725623467334,0.04563507,130.51,130.48,29.48]
[1725623467532,0.04563507,130.51,130.46,2.83140908]
[1725623467533,0.04563507,130.51,130.46,1.41080908]
[1725623467733,0.32749082,130.51,130.46,1.41080908]
[1725623468424,3.8324,130.49,130.46,5.24370908]
[1725623469328,0.04563507,130.51,130.46,1.41080908]
[1725623470333,0.04563507,130.51,130.46,5.24380908]
[1725623470334,3.8324,130.49,130.46,5.24380908]
[1725623471541,3.8321,130.5,130.47,3.8327]
[1725623472136,3.8322,130.49,130.46,5.24380908]
[1725623472534,0.04563507,130.51,130.46,5.24380908]
[1725623472535,0.04563507,130.51,130.47,3.8328]
[1725623472728,3.8321,130.5,130.47,3.8328]
[1725623473933,3.8321,130.5,130.47,15.6228]
[1725623474530,0.04563507,130.51,130.47,11.79]
[1725623475138,3.8324,130.49,130.47,11.79]
[1725623476040,3.8324,130.49,130.47,15.6228]
[1725623476740,0.04563507,130.51,130.46,1.41080908]
[1725623476741,0.04563507,130.51,130.46,13.20080908]
[1725623477243,0.32752526,130.51,130.46,13.20080908]
[1725623477450,0.28189019,130.5,130.46,13.20080908]
[1725623477744,3.8326,130.48,130.47,11.79]
[1725623479336,3.8325,130.49,130.47,11.79]
[1725623480235,0.04563507,130.51,130.47,11.79]
[1725623480842,3.8325,130.48,130.47,11.79]
[1725623481941,3.8328,130.47,130.46,0.05860908]
[1725623485547,15.6228,130.47,130.46,0.05860908]
[1725623485745,3.8328,130.47,130.46,0.05860908]
[1725623485951,15.904766,130.47,130.46,0.05860908]
[1725623486143,3.834,130.43,130.41,13.0826]
[1725623487340,3.834,130.43,130.41,13.13745917]
[1725623487945,3.834,130.43,130.42,11.79]
[1725623488145,3.8011775,130.49,130.42,11.79]
[1725623488341,11.79,130.5,130.45,11.79]
[1725623488853,0.28193361,130.49,130.46,0.05181563]